[Event "Early-Titled-Tuesday-Blitz-March-12-2024"]
[Site "Chess.com"]
[Date "2024.03.12"]
[Round "11"]
[White "AnishOnYoutube"]
[Black "yosephtaher"]
[Result "0-1"]
[WhiteElo "3037"]
[BlackElo "2978"]
[TimeControl "180+1"]
[EndTime "10:03:44 PDT"]
[Termination "yosephtaher won on time"]

1. d4 {[%clk 0:03:00.9]} 1... Nf6 {[%clk 0:02:49.9]} 2. c4 {[%clk 0:03:01.3]}
2... c5 {[%clk 0:02:50.1]} 3. d5 {[%clk 0:03:01.2]} 3... b5 {[%clk 0:02:50.8]}
4. cxb5 {[%clk 0:03:01.3]} 4... a6 {[%clk 0:02:51.6]} 5. e3 {[%clk 0:03:01.3]}
5... g6 {[%clk 0:02:51]} 6. Nc3 {[%clk 0:03:01.4]} 6... axb5 {[%clk 0:02:51.7]}
7. Bxb5 {[%clk 0:03:01.3]} 7... Bg7 {[%clk 0:02:52.4]} 8. Nf3 {[%clk 0:02:59.5]}
8... O-O {[%clk 0:02:52.7]} 9. O-O {[%clk 0:02:59.8]} 9... d6 {[%clk 0:02:53.3]}
10. a4 {[%clk 0:02:57.5]} 10... Qb6 {[%clk 0:02:53.5]} 11. e4 {[%clk 0:02:56.8]}
11... Na6 {[%clk 0:02:51.3]} 12. Bg5 {[%clk 0:02:52.6]} 12... Nc7 {[%clk
0:02:48.2]} 13. h3 {[%clk 0:02:52.3]} 13... Ba6 {[%clk 0:02:43.2]} 14. Qe2
{[%clk 0:02:41.6]} 14... Rfb8 {[%clk 0:02:41.3]} 15. Nd2 {[%clk 0:02:05.6]}
15... h6 {[%clk 0:02:37]} 16. Nc4 {[%clk 0:02:02.4]} 16... Qa7 {[%clk
0:02:36.3]} 17. Bd2 {[%clk 0:01:48.8]} 17... Bxb5 {[%clk 0:02:26]} 18. axb5
{[%clk 0:01:47.5]} 18... Qxa1 {[%clk 0:02:26.9]} 19. Rxa1 {[%clk 0:01:47.9]}
19... Rxa1+ {[%clk 0:02:27.6]} 20. Kh2 {[%clk 0:01:48.6]} 20... Nxb5 {[%clk
0:02:28.2]} 21. Nxb5 {[%clk 0:01:44.1]} 21... Rxb5 {[%clk 0:02:28.9]} 22. Nxd6
{[%clk 0:01:24.7]} 22... Rxb2 {[%clk 0:02:25.4]} 23. Nc4 {[%clk 0:01:24.8]}
23... Rc2 {[%clk 0:02:07.1]} 24. Qd3 {[%clk 0:01:20.6]} 24... Raa2 {[%clk
0:02:05.5]} 25. e5 {[%clk 0:01:09.5]} 25... Nd7 {[%clk 0:02:04]} 26. f4 {[%clk
0:00:29.7]} 26... Nb6 {[%clk 0:01:59.7]} 27. Nxb6 {[%clk 0:00:28.3]} 27... Rxd2
{[%clk 0:01:59.5]} 28. Qf3 {[%clk 0:00:28.8]} 28... g5 {[%clk 0:01:55.2]} 29. d6
{[%clk 0:00:19.6]} 29... exd6 {[%clk 0:01:54.4]} 30. exd6 {[%clk 0:00:19]} 30...
Rxd6 {[%clk 0:01:50.3]} 31. Nc4 {[%clk 0:00:19.6]} 31... Rd4 {[%clk 0:01:49.3]}
32. Qb3 {[%clk 0:00:16.2]} 32... Ra8 {[%clk 0:01:39.6]} 33. fxg5 {[%clk
0:00:15.6]} 33... hxg5 {[%clk 0:01:40.5]} 34. Qb5 {[%clk 0:00:14.4]} 34... Bf8
{[%clk 0:01:23.6]} 35. Qc6 {[%clk 0:00:14.6]} 35... Ra2 {[%clk 0:01:15.8]} 36.
Ne3 {[%clk 0:00:06.2]} 36... Bd6+ {[%clk 0:01:15.4]} 37. Kg1 {[%clk 0:00:06.4]}
37... Kh7 {[%clk 0:00:35.3]} 38. Qe8 {[%clk 0:00:04]} 38... Rf4 {[%clk
0:00:30.7]} 39. g3 {[%clk 0:00:02.7]} 39... Rf6 {[%clk 0:00:22.2]} 40. Qe4+
{[%clk 0:00:02.2]} 40... Kg8 {[%clk 0:00:22.9]} 41. Qe8+ {[%clk 0:00:02.4]}
41... Bf8 {[%clk 0:00:22.3]} 42. Ng4 {[%clk 0:00:02.3]} 42... Re6 {[%clk
0:00:21]} 0-1

[Event "Early-Titled-Tuesday-Blitz-March-12-2024"]
[Site "Chess.com"]
[Date "2024.03.12"]
[Round "11"]
[White "Barmen_EV"]
[Black "Flawless_Fighter"]
[Result "1/2-1/2"]
[WhiteElo "2553"]
[BlackElo "2843"]
[TimeControl "180+1"]
[EndTime "10:03:45 PDT"]
[Termination "Game drawn by repetition"]

1. e4 {[%clk 0:03:00.9]} 1... e5 {[%clk 0:02:57.8]} 2. Nf3 {[%clk 0:02:59.4]}
2... Nc6 {[%clk 0:02:58.4]} 3. d4 {[%clk 0:02:58]} 3... exd4 {[%clk 0:02:57.7]}
4. Bc4 {[%clk 0:02:58.7]} 4... Nf6 {[%clk 0:02:57]} 5. O-O {[%clk 0:02:59.1]}
5... Nxe4 {[%clk 0:02:56.7]} 6. Nc3 {[%clk 0:02:59.9]} 6... Nxc3 {[%clk
0:02:24.1]} 7. bxc3 {[%clk 0:03:00]} 7... d5 {[%clk 0:02:20.4]} 8. Bb5 {[%clk
0:03:00.2]} 8... Be7 {[%clk 0:02:19.6]} 9. cxd4 {[%clk 0:02:59.9]} 9... O-O
{[%clk 0:02:19.3]} 10. Bxc6 {[%clk 0:03:00]} 10... bxc6 {[%clk 0:02:19.4]} 11.
h3 {[%clk 0:03:00.9]} 11... Bf5 {[%clk 0:02:16.1]} 12. c3 {[%clk 0:03:00.6]}
12... c5 {[%clk 0:02:12.7]} 13. Re1 {[%clk 0:03:00]} 13... Be4 {[%clk
0:02:05.1]} 14. Ne5 {[%clk 0:02:51.3]} 14... Bf6 {[%clk 0:02:04]} 15. Bf4 {[%clk
0:02:37.4]} 15... Re8 {[%clk 0:02:02.3]} 16. Qg4 {[%clk 0:02:31.3]} 16... cxd4
{[%clk 0:01:52.9]} 17. cxd4 {[%clk 0:02:32.2]} 17... c5 {[%clk 0:01:51.2]} 18.
f3 {[%clk 0:01:52.8]} 18... cxd4 {[%clk 0:01:32.9]} 19. Nd7 {[%clk 0:01:52.8]}
19... h5 {[%clk 0:01:12.5]} 20. Nxf6+ {[%clk 0:01:32.4]} 20... Qxf6 {[%clk
0:01:13.4]} 21. Qg3 {[%clk 0:01:33]} 21... Bg6 {[%clk 0:01:05.9]} 22. Be5 {[%clk
0:01:28.3]} 22... Qb6 {[%clk 0:01:06.1]} 23. Rad1 {[%clk 0:01:24]} 23... d3+
{[%clk 0:01:05.3]} 24. Kh2 {[%clk 0:01:24.6]} 24... Re6 {[%clk 0:01:03]} 25. f4
{[%clk 0:01:21.2]} 25... Rae8 {[%clk 0:00:36.6]} 26. f5 {[%clk 0:01:14.7]} 26...
h4 {[%clk 0:00:36.7]} 27. Qf4 {[%clk 0:00:57.7]} 27... Rxe5 {[%clk 0:00:23.4]}
28. Rxe5 {[%clk 0:00:29.5]} 28... Rxe5 {[%clk 0:00:22.6]} 29. Qxe5 {[%clk
0:00:29.9]} 29... Bh5 {[%clk 0:00:22.5]} 30. Rxd3 {[%clk 0:00:26.2]} 30... Qf2
{[%clk 0:00:22.2]} 31. Rb3 {[%clk 0:00:04.2]} 31... d4 {[%clk 0:00:18.5]} 32.
Rb8+ {[%clk 0:00:03.8]} 32... Kh7 {[%clk 0:00:18.8]} 33. Qe8 {[%clk 0:00:01.8]}
33... Qf4+ {[%clk 0:00:12.5]} 34. Kg1 {[%clk 0:00:02.4]} 34... Qc1+ {[%clk
0:00:10]} 35. Kh2 {[%clk 0:00:03.1]} 35... Qc7+ {[%clk 0:00:09.9]} 36. Kg1
{[%clk 0:00:03.2]} 36... Qc1+ {[%clk 0:00:07]} 37. Kf2 {[%clk 0:00:03.1]} 37...
Qf4+ {[%clk 0:00:05.4]} 38. Kg1 {[%clk 0:00:02.7]} 38... Qc1+ {[%clk 0:00:05.1]}
1/2-1/2

[Event "Early-Titled-Tuesday-Blitz-March-12-2024"]
[Site "Chess.com"]
[Date "2024.03.12"]
[Round "11"]
[White "Alexchess1984"]
[Black "Zq1"]
[Result "0-1"]
[WhiteElo "2728"]
[BlackElo "2606"]
[TimeControl "180+1"]
[EndTime "10:03:45 PDT"]
[Termination "Zq1 won on time"]

1. e4 {[%clk 0:03:00.9]} 1... c5 {[%clk 0:03:00]} 2. c3 {[%clk 0:03:00]} 2... d5
{[%clk 0:02:59.6]} 3. exd5 {[%clk 0:03:00.1]} 3... Nf6 {[%clk 0:02:59.6]} 4. d4
{[%clk 0:02:59.4]} 4... cxd4 {[%clk 0:02:58.7]} 5. cxd4 {[%clk 0:02:58.5]} 5...
Nxd5 {[%clk 0:02:58.5]} 6. Nc3 {[%clk 0:02:58.9]} 6... g6 {[%clk 0:02:55.1]} 7.
Nf3 {[%clk 0:02:58.3]} 7... Bg7 {[%clk 0:02:54]} 8. Bc4 {[%clk 0:02:57.6]} 8...
Nxc3 {[%clk 0:02:53.3]} 9. bxc3 {[%clk 0:02:58.5]} 9... O-O {[%clk 0:02:52.9]}
10. O-O {[%clk 0:02:55.9]} 10... Nc6 {[%clk 0:02:52.8]} 11. Bg5 {[%clk
0:02:53.3]} 11... Qc7 {[%clk 0:02:45.5]} 12. Qe2 {[%clk 0:02:49.7]} 12... Bg4
{[%clk 0:02:40.6]} 13. h3 {[%clk 0:02:41.2]} 13... Bxf3 {[%clk 0:02:37.9]} 14.
Qxf3 {[%clk 0:02:42.1]} 14... Nxd4 {[%clk 0:02:35.7]} 15. cxd4 {[%clk
0:02:41.9]} 15... Qxc4 {[%clk 0:02:35]} 16. Bxe7 {[%clk 0:02:38.2]} 16... Rfe8
{[%clk 0:02:34]} 17. Qxb7 {[%clk 0:02:10.5]} 17... Bxd4 {[%clk 0:02:32.8]} 18.
Rac1 {[%clk 0:01:50.1]} 18... Qxa2 {[%clk 0:02:31]} 19. Rc7 {[%clk 0:01:32]}
19... Qe6 {[%clk 0:02:16.5]} 20. Bh4 {[%clk 0:01:24.5]} 20... Bb6 {[%clk
0:02:08.8]} 21. Rd7 {[%clk 0:01:03.4]} 21... Rab8 {[%clk 0:01:58.8]} 22. Qd5
{[%clk 0:01:03.2]} 22... Qxd5 {[%clk 0:01:55.4]} 23. Rxd5 {[%clk 0:01:04.1]}
23... Kg7 {[%clk 0:01:51.1]} 24. Ra1 {[%clk 0:01:02]} 24... Re4 {[%clk
0:01:47.6]} 25. Bg3 {[%clk 0:00:57.8]} 25... Rbe8 {[%clk 0:01:46.3]} 26. Kh2
{[%clk 0:00:46.3]} 26... h5 {[%clk 0:01:45.2]} 27. h4 {[%clk 0:00:44.8]} 27...
Re2 {[%clk 0:01:37.4]} 28. Rd7 {[%clk 0:00:30.9]} 28... Bxf2 {[%clk 0:01:29.1]}
29. Raxa7 {[%clk 0:00:26.4]} 29... Bxa7 {[%clk 0:01:26.4]} 30. Rxa7 {[%clk
0:00:24.8]} 30... R8e4 {[%clk 0:01:26.2]} 31. Kg1 {[%clk 0:00:18.6]} 31... Rg4
{[%clk 0:01:22.3]} 32. Bf2 {[%clk 0:00:18.7]} 32... Rxf2 {[%clk 0:01:21.7]} 33.
Kxf2 {[%clk 0:00:19.6]} 33... Rxh4 {[%clk 0:01:20.7]} 34. Kf3 {[%clk 0:00:19.9]}
34... Rg4 {[%clk 0:01:20.8]} 35. Rb7 {[%clk 0:00:18]} 35... Rg5 {[%clk
0:01:20.5]} 36. Rb6 {[%clk 0:00:17.8]} 36... h4 {[%clk 0:01:19.2]} 37. Rb4
{[%clk 0:00:16.3]} 37... Rg3+ {[%clk 0:01:19.1]} 38. Kf2 {[%clk 0:00:15.5]}
38... g5 {[%clk 0:01:19.4]} 39. Rb6 {[%clk 0:00:13.7]} 39... f6 {[%clk
0:01:17.8]} 40. Rb5 {[%clk 0:00:12.8]} 40... Kg6 {[%clk 0:01:17.2]} 41. Ra5
{[%clk 0:00:12.9]} 41... f5 {[%clk 0:01:16.5]} 42. Ra6+ {[%clk 0:00:12.6]} 42...
Kh5 {[%clk 0:01:15.9]} 43. Ra8 {[%clk 0:00:12.5]} 43... f4 {[%clk 0:01:15.5]}
44. Ra5 {[%clk 0:00:09]} 44... Kg4 {[%clk 0:01:15.4]} 45. Rb5 {[%clk 0:00:05.4]}
45... h3 {[%clk 0:01:11]} 46. gxh3+ {[%clk 0:00:05.4]} 46... Kxh3 {[%clk
0:01:09.5]} 47. Rb8 {[%clk 0:00:05.5]} 47... Kg4 {[%clk 0:01:09.1]} 48. Rb5
{[%clk 0:00:03.8]} 48... Ra3 {[%clk 0:01:08.4]} 49. Rb2 {[%clk 0:00:02.9]} 49...
Kh3 {[%clk 0:01:06.3]} 50. Rb8 {[%clk 0:00:02.5]} 50... Ra2+ {[%clk 0:01:00.1]}
51. Kf3 {[%clk 0:00:02.4]} 51... g4+ {[%clk 0:01:00.2]} 52. Kxf4 {[%clk
0:00:02.6]} 52... Rf2+ {[%clk 0:00:59.4]} 53. Ke3 {[%clk 0:00:02.5]} 53... g3
{[%clk 0:00:58.9]} 54. Rh8+ {[%clk 0:00:02.5]} 54... Kg2 {[%clk 0:00:58.8]} 55.
Rg8 {[%clk 0:00:03.2]} 55... Rf7 {[%clk 0:00:58]} 56. Rg6 {[%clk 0:00:02.7]}
56... Re7+ {[%clk 0:00:57.9]} 57. Kf4 {[%clk 0:00:02.4]} 57... Kf2 {[%clk
0:00:57.2]} 58. Kg4 {[%clk 0:00:01.6]} 58... g2 {[%clk 0:00:54]} 59. Rf6+ {[%clk
0:00:01.9]} 59... Kg1 {[%clk 0:00:53.5]} 60. Kg3 {[%clk 0:00:01.6]} 60... Re3+
{[%clk 0:00:51.5]} 0-1

[Event "Early-Titled-Tuesday-Blitz-March-12-2024"]
[Site "Chess.com"]
[Date "2024.03.12"]
[Round "11"]
[White "BilodeauA"]
[Black "DonkyDonkyDonkey"]
[Result "1-0"]
[WhiteElo "3006"]
[BlackElo "2891"]
[TimeControl "180+1"]
[EndTime "10:03:54 PDT"]
[Termination "BilodeauA won on time"]

1. e4 {[%clk 0:02:55.5]} 1... c5 {[%clk 0:02:58.5]} 2. Nf3 {[%clk 0:02:53.7]}
2... d6 {[%clk 0:02:57.6]} 3. d4 {[%clk 0:02:53.9]} 3... cxd4 {[%clk 0:02:58.5]}
4. Nxd4 {[%clk 0:02:54.4]} 4... Nf6 {[%clk 0:02:58.9]} 5. Nc3 {[%clk 0:02:55]}
5... a6 {[%clk 0:02:59.5]} 6. Be2 {[%clk 0:02:55.7]} 6... e6 {[%clk 0:02:58.2]}
7. O-O {[%clk 0:02:51]} 7... Qc7 {[%clk 0:02:57.3]} 8. f4 {[%clk 0:02:49.4]}
8... Be7 {[%clk 0:02:57.2]} 9. Bf3 {[%clk 0:02:43.8]} 9... Nbd7 {[%clk
0:02:49.2]} 10. a4 {[%clk 0:02:43.7]} 10... Rb8 {[%clk 0:02:43.8]} 11. g4 {[%clk
0:02:43.8]} 11... b6 {[%clk 0:02:24.1]} 12. g5 {[%clk 0:02:41.5]} 12... Ng8
{[%clk 0:02:24.4]} 13. f5 {[%clk 0:02:23.9]} 13... Ne5 {[%clk 0:02:22.8]} 14.
Bg2 {[%clk 0:02:24.4]} 14... g6 {[%clk 0:02:05.2]} 15. fxe6 {[%clk 0:02:21.5]}
15... fxe6 {[%clk 0:02:06.1]} 16. Bf4 {[%clk 0:02:16.3]} 16... h6 {[%clk
0:02:05.5]} 17. Qd2 {[%clk 0:01:54.3]} 17... hxg5 {[%clk 0:01:37.1]} 18. Bg3
{[%clk 0:01:51.5]} 18... Nf6 {[%clk 0:01:33.3]} 19. Kh1 {[%clk 0:01:39.8]} 19...
Nh5 {[%clk 0:01:31.8]} 20. Qf2 {[%clk 0:01:31]} 20... Ng4 {[%clk 0:01:11.1]} 21.
Qf7+ {[%clk 0:01:30.6]} 21... Kd8 {[%clk 0:01:11.3]} 22. Kg1 {[%clk 0:00:58.8]}
22... Nxg3 {[%clk 0:00:54.3]} 23. hxg3 {[%clk 0:00:58.9]} 23... Qc5 {[%clk
0:00:52]} 24. Rad1 {[%clk 0:00:58]} 24... Ne3 {[%clk 0:00:47.4]} 25. b4 {[%clk
0:00:54.7]} 25... Qxc3 {[%clk 0:00:47.5]} 26. Rd3 {[%clk 0:00:55.1]} 26... Qc4
{[%clk 0:00:47.8]} 27. Qg7 {[%clk 0:00:52.8]} 27... Re8 {[%clk 0:00:27.4]} 28.
Rxe3 {[%clk 0:00:52.5]} 28... Bd7 {[%clk 0:00:27.4]} 29. Rd1 {[%clk 0:00:46]}
29... Rc8 {[%clk 0:00:23.6]} 30. b5 {[%clk 0:00:42.9]} 30... Qxa4 {[%clk
0:00:20.1]} 31. Red3 {[%clk 0:00:39]} 31... Qb4 {[%clk 0:00:08.7]} 32. bxa6
{[%clk 0:00:37.4]} 32... Kc7 {[%clk 0:00:09.2]} 33. Rc3+ {[%clk 0:00:29.9]}
33... Kb8 {[%clk 0:00:07.7]} 34. a7+ {[%clk 0:00:25.2]} 34... Kb7 {[%clk
0:00:05.8]} 35. Rxc8 {[%clk 0:00:21.1]} 35... Bxc8 {[%clk 0:00:06.7]} 36. e5+
{[%clk 0:00:17.9]} 36... d5 {[%clk 0:00:07]} 37. Qxg6 {[%clk 0:00:13.4]} 37...
Rd8 {[%clk 0:00:05]} 38. Nxe6 {[%clk 0:00:10.4]} 38... Bxe6 {[%clk 0:00:03.9]}
39. Qxe6 {[%clk 0:00:09.6]} 39... Bc5+ {[%clk 0:00:04.5]} 40. Kh2 {[%clk
0:00:07.5]} 40... Rh8+ {[%clk 0:00:05]} 41. Bh3 {[%clk 0:00:08.2]} 41... Qc3
{[%clk 0:00:03.8]} 42. Qxd5+ {[%clk 0:00:07]} 42... Ka6 {[%clk 0:00:01.9]} 43.
a8=Q+ {[%clk 0:00:06.4]} 1-0

[Event "Early-Titled-Tuesday-Blitz-March-12-2024"]
[Site "Chess.com"]
[Date "2024.03.12"]
[Round "11"]
[White "KetiTsatsalashvili"]
[Black "karinachess1"]
[Result "0-1"]
[WhiteElo "2444"]
[BlackElo "2614"]
[TimeControl "180+1"]
[EndTime "10:03:57 PDT"]
[Termination "karinachess1 won on time"]

1. d4 {[%clk 0:03:00.9]} 1... Nf6 {[%clk 0:03:00]} 2. Nf3 {[%clk 0:03:00.1]}
2... e6 {[%clk 0:03:00.5]} 3. c4 {[%clk 0:02:59.7]} 3... d5 {[%clk 0:03:00.9]}
4. Nc3 {[%clk 0:02:57.5]} 4... Bb4 {[%clk 0:03:00.7]} 5. cxd5 {[%clk 0:02:55.6]}
5... exd5 {[%clk 0:03:01.6]} 6. Bg5 {[%clk 0:02:55.7]} 6... h6 {[%clk 0:03:02]}
7. Bh4 {[%clk 0:02:55.6]} 7... g5 {[%clk 0:03:01.6]} 8. Bg3 {[%clk 0:02:55.8]}
8... Ne4 {[%clk 0:03:02.1]} 9. Rc1 {[%clk 0:02:53.3]} 9... h5 {[%clk 0:03:00.1]}
10. a3 {[%clk 0:02:39.3]} 10... Bxc3+ {[%clk 0:02:52]} 11. bxc3 {[%clk
0:02:30.5]} 11... h4 {[%clk 0:02:51.9]} 12. Be5 {[%clk 0:02:14.9]} 12... f6
{[%clk 0:02:52.1]} 13. Qa4+ {[%clk 0:02:07.2]} 13... Nc6 {[%clk 0:02:44]} 14. e3
{[%clk 0:02:02.8]} 14... fxe5 {[%clk 0:02:12.7]} 15. Nxe5 {[%clk 0:02:03.7]}
15... Qf6 {[%clk 0:02:09.4]} 16. f3 {[%clk 0:01:58.6]} 16... Nd6 {[%clk
0:02:03.3]} 17. Bd3 {[%clk 0:01:29.6]} 17... O-O {[%clk 0:01:53.3]} 18. Nxc6
{[%clk 0:01:19.1]} 18... Bd7 {[%clk 0:01:53.6]} 19. Qa5 {[%clk 0:01:07]} 19...
Bxc6 {[%clk 0:01:40.1]} 20. Qxc7 {[%clk 0:01:06.8]} 20... Rf7 {[%clk 0:01:40.4]}
21. Qa5 {[%clk 0:01:06.2]} 21... Re8 {[%clk 0:01:38.1]} 22. Kd2 {[%clk
0:01:01.7]} 22... Rfe7 {[%clk 0:01:27.1]} 23. Rce1 {[%clk 0:01:00.5]} 23... b6
{[%clk 0:01:10.3]} 24. Qb4 {[%clk 0:00:59]} 24... Nf5 {[%clk 0:01:10.6]} 25. e4
{[%clk 0:00:53.3]} 25... dxe4 {[%clk 0:01:04.9]} 26. fxe4 {[%clk 0:00:51]} 26...
Bxe4 {[%clk 0:01:05.2]} 27. Bc4+ {[%clk 0:00:49.9]} 27... Kg7 {[%clk 0:01:01.5]}
28. Rhf1 {[%clk 0:00:48.9]} 28... Qg6 {[%clk 0:00:48.1]} 29. g4 {[%clk
0:00:45.5]} 29... Nd6 {[%clk 0:00:45.7]} 30. Bb3 {[%clk 0:00:38.1]} 30... Bd3
{[%clk 0:00:42.1]} 31. Rxe7+ {[%clk 0:00:33.7]} 31... Rxe7 {[%clk 0:00:43]} 32.
Rf2 {[%clk 0:00:26.3]} 32... Ne4+ {[%clk 0:00:42.4]} 33. Kc1 {[%clk 0:00:26.3]}
33... Nxf2 {[%clk 0:00:41.6]} 34. Qxe7+ {[%clk 0:00:26.1]} 34... Kh6 {[%clk
0:00:31.1]} 35. Qf8+ {[%clk 0:00:25.9]} 35... Qg7 {[%clk 0:00:26.9]} 36. Qxf2
{[%clk 0:00:26.1]} 36... Qe7 {[%clk 0:00:27.3]} 37. Kd2 {[%clk 0:00:22.5]} 37...
Bg6 {[%clk 0:00:25.9]} 38. a4 {[%clk 0:00:18.8]} 38... Qa3 {[%clk 0:00:22.5]}
39. Bd5 {[%clk 0:00:07.8]} 39... Qb2+ {[%clk 0:00:20.3]} 40. Ke1 {[%clk
0:00:07.4]} 40... Qxc3+ {[%clk 0:00:20.3]} 41. Qd2 {[%clk 0:00:05.5]} 41... Qh3
{[%clk 0:00:12.2]} 42. Qf2 {[%clk 0:00:04]} 42... Qc3+ {[%clk 0:00:08.4]} 43.
Qd2 {[%clk 0:00:03.1]} 43... Qa1+ {[%clk 0:00:08.8]} 44. Kf2 {[%clk 0:00:02.9]}
44... Qxa4 {[%clk 0:00:09.1]} 45. Kg2 {[%clk 0:00:01.4]} 45... Qd7 {[%clk
0:00:09.2]} 0-1

[Event "Early-Titled-Tuesday-Blitz-March-12-2024"]
[Site "Chess.com"]
[Date "2024.03.12"]
[Round "11"]
[White "Louis-Paulsen-Fan"]
[Black "JaackCamel"]
[Result "0-1"]
[WhiteElo "2255"]
[BlackElo "2209"]
[TimeControl "180+1"]
[EndTime "10:03:57 PDT"]
[Termination "JaackCamel won on time"]

1. d4 {[%clk 0:03:00.9]} 1... d5 {[%clk 0:02:57.9]} 2. Nf3 {[%clk 0:03:01]} 2...
e6 {[%clk 0:02:57.6]} 3. c4 {[%clk 0:03:01.5]} 3... c6 {[%clk 0:02:57.6]} 4. Nc3
{[%clk 0:03:01.7]} 4... dxc4 {[%clk 0:02:56.7]} 5. e3 {[%clk 0:03:01.2]} 5... b5
{[%clk 0:02:55.2]} 6. a4 {[%clk 0:03:01.3]} 6... Bb4 {[%clk 0:02:53.3]} 7. Bd2
{[%clk 0:03:00.3]} 7... a5 {[%clk 0:02:52.1]} 8. axb5 {[%clk 0:03:00.2]} 8...
Bxc3 {[%clk 0:02:51.6]} 9. Bxc3 {[%clk 0:03:00.5]} 9... cxb5 {[%clk 0:02:51.5]}
10. b3 {[%clk 0:03:01]} 10... Bb7 {[%clk 0:02:51.3]} 11. bxc4 {[%clk 0:03:01.4]}
11... b4 {[%clk 0:02:51.4]} 12. Bb2 {[%clk 0:03:01.8]} 12... Nf6 {[%clk
0:02:51.2]} 13. Bd3 {[%clk 0:03:02.1]} 13... O-O {[%clk 0:02:51]} 14. O-O {[%clk
0:03:02.2]} 14... Nbd7 {[%clk 0:02:50.6]} 15. Nd2 {[%clk 0:02:57.5]} 15... Qc7
{[%clk 0:02:43.9]} 16. Bc2 {[%clk 0:02:43.9]} 16... Rfe8 {[%clk 0:02:18.6]} 17.
f4 {[%clk 0:02:38.9]} 17... Red8 {[%clk 0:02:12.3]} 18. c5 {[%clk 0:02:29.8]}
18... Bc6 {[%clk 0:02:07.8]} 19. Ba4 {[%clk 0:02:19.9]} 19... Ne4 {[%clk
0:01:55.2]} 20. Nxe4 {[%clk 0:01:46.1]} 20... Bxe4 {[%clk 0:01:53.6]} 21. Qe2
{[%clk 0:01:42.8]} 21... Nf6 {[%clk 0:01:48.6]} 22. Bc2 {[%clk 0:01:28.1]} 22...
a4 {[%clk 0:01:38.2]} 23. Rxa4 {[%clk 0:01:19.8]} 23... Rxa4 {[%clk 0:01:22.7]}
24. Bxa4 {[%clk 0:01:20.7]} 24... Qb7 {[%clk 0:01:12.6]} 25. Bc2 {[%clk
0:01:14]} 25... Rb8 {[%clk 0:01:11.7]} 26. Rc1 {[%clk 0:01:08.1]} 26... Qc6
{[%clk 0:01:05.5]} 27. Bxe4 {[%clk 0:00:59.7]} 27... Nxe4 {[%clk 0:01:04.9]} 28.
Qd3 {[%clk 0:00:55.4]} 28... f5 {[%clk 0:01:04.2]} 29. h3 {[%clk 0:00:54]} 29...
h6 {[%clk 0:01:03.5]} 30. Qc4 {[%clk 0:00:48]} 30... Kh7 {[%clk 0:01:01.5]} 31.
Rd1 {[%clk 0:00:42.8]} 31... Qa4 {[%clk 0:00:58.6]} 32. Ra1 {[%clk 0:00:36.7]}
32... Qd7 {[%clk 0:00:55.1]} 33. c6 {[%clk 0:00:35.4]} 33... Qf7 {[%clk
0:00:51]} 34. c7 {[%clk 0:00:31.9]} 34... Rc8 {[%clk 0:00:50.6]} 35. Ra7 {[%clk
0:00:32.1]} 35... Qg6 {[%clk 0:00:50]} 36. d5 {[%clk 0:00:26.9]} 36... Qg3
{[%clk 0:00:49.3]} 37. Bd4 {[%clk 0:00:14.7]} 37... Qf2+ {[%clk 0:00:44.4]} 38.
Kh2 {[%clk 0:00:13.2]} 38... Qg3+ {[%clk 0:00:41.4]} 39. Kg1 {[%clk 0:00:12.9]}
39... Qe1+ {[%clk 0:00:36.2]} 40. Qf1 {[%clk 0:00:11.1]} 40... Qg3 {[%clk
0:00:33.2]} 41. dxe6 {[%clk 0:00:09.4]} 41... b3 {[%clk 0:00:24.7]} 42. e7
{[%clk 0:00:09.4]} 42... b2 {[%clk 0:00:22.3]} 43. Bxb2 {[%clk 0:00:05.3]} 43...
Qxe3+ {[%clk 0:00:22]} 44. Kh2 {[%clk 0:00:04.3]} 44... Qxa7 {[%clk 0:00:21.7]}
45. Qc4 {[%clk 0:00:02.2]} 45... Rxc7 {[%clk 0:00:20]} 46. Qxc7 {[%clk
0:00:02.1]} 46... Qxc7 {[%clk 0:00:19.4]} 47. e8=Q {[%clk 0:00:02.6]} 47...
Qxf4+ {[%clk 0:00:19.5]} 48. Kg1 {[%clk 0:00:02.5]} 48... Qf2+ {[%clk
0:00:19.5]} 49. Kh1 {[%clk 0:00:02.1]} 49... Qxb2 {[%clk 0:00:19.7]} 50. Qe6
{[%clk 0:00:01.1]} 50... Qf6 {[%clk 0:00:19.7]} 0-1

[Event "Early-Titled-Tuesday-Blitz-March-12-2024"]
[Site "Chess.com"]
[Date "2024.03.12"]
[Round "11"]
[White "Goryachkina"]
[Black "Mops_2004"]
[Result "0-1"]
[WhiteElo "2680"]
[BlackElo "2849"]
[TimeControl "180+1"]
[EndTime "10:03:58 PDT"]
[Termination "Mops_2004 won by resignation"]

1. e4 {[%clk 0:02:59.7]} 1... g6 {[%clk 0:03:00.5]} 2. d4 {[%clk 0:02:58.9]}
2... Bg7 {[%clk 0:03:01]} 3. Nc3 {[%clk 0:02:59.2]} 3... d6 {[%clk 0:03:01.6]}
4. Nf3 {[%clk 0:02:58.1]} 4... a6 {[%clk 0:03:00.9]} 5. a4 {[%clk 0:02:55.3]}
5... Nc6 {[%clk 0:03:00.1]} 6. d5 {[%clk 0:02:45.5]} 6... Nb4 {[%clk 0:02:56.9]}
7. Be3 {[%clk 0:02:43.8]} 7... Nf6 {[%clk 0:02:52.9]} 8. Be2 {[%clk 0:02:42.7]}
8... a5 {[%clk 0:02:50.1]} 9. O-O {[%clk 0:02:41.9]} 9... O-O {[%clk 0:02:50]}
10. Nd4 {[%clk 0:02:39.6]} 10... c6 {[%clk 0:02:46]} 11. dxc6 {[%clk 0:02:27.2]}
11... bxc6 {[%clk 0:02:45.8]} 12. f3 {[%clk 0:02:27]} 12... e5 {[%clk
0:02:38.5]} 13. Nb3 {[%clk 0:02:26.4]} 13... Re8 {[%clk 0:02:30.1]} 14. Na2
{[%clk 0:02:01.2]} 14... Nxa2 {[%clk 0:02:14.1]} 15. Rxa2 {[%clk 0:02:02.1]}
15... d5 {[%clk 0:02:11.9]} 16. Bd3 {[%clk 0:01:51.3]} 16... d4 {[%clk
0:01:50.8]} 17. Bf2 {[%clk 0:01:51.1]} 17... Be6 {[%clk 0:01:49.9]} 18. Ra1
{[%clk 0:01:51]} 18... Nd7 {[%clk 0:01:42.9]} 19. Nd2 {[%clk 0:01:48.7]} 19...
Bh6 {[%clk 0:01:24.2]} 20. Bc4 {[%clk 0:01:37.8]} 20... Bxd2 {[%clk 0:01:16.1]}
21. Bxe6 {[%clk 0:01:37.5]} 21... Rxe6 {[%clk 0:01:17]} 22. Qxd2 {[%clk
0:01:37.6]} 22... c5 {[%clk 0:01:14.2]} 23. b3 {[%clk 0:01:30.1]} 23... Qc7
{[%clk 0:01:11.1]} 24. Rfd1 {[%clk 0:01:11.3]} 24... Rc6 {[%clk 0:01:06.4]} 25.
c3 {[%clk 0:01:04.3]} 25... Rb8 {[%clk 0:01:06.3]} 26. Rab1 {[%clk 0:00:56.4]}
26... Nf8 {[%clk 0:00:44.9]} 27. f4 {[%clk 0:00:34.6]} 27... f6 {[%clk
0:00:36.2]} 28. fxe5 {[%clk 0:00:32]} 28... fxe5 {[%clk 0:00:37.1]} 29. cxd4
{[%clk 0:00:20.5]} 29... cxd4 {[%clk 0:00:36.1]} 30. Rf1 {[%clk 0:00:20.5]}
30... Rc2 {[%clk 0:00:34.3]} 31. Qh6 {[%clk 0:00:20.5]} 31... Qg7 {[%clk
0:00:16.8]} 32. Qh4 {[%clk 0:00:19.4]} 32... Ne6 {[%clk 0:00:15.6]} 33. Bg3
{[%clk 0:00:19.4]} 33... g5 {[%clk 0:00:12.4]} 34. Qg4 {[%clk 0:00:13.7]} 34...
Nf4 {[%clk 0:00:12.7]} 35. Bxf4 {[%clk 0:00:09.8]} 35... gxf4 {[%clk 0:00:13.1]}
36. Qh3 {[%clk 0:00:10.2]} 36... Rbc8 {[%clk 0:00:11]} 37. Kh1 {[%clk
0:00:08.2]} 37... R8c3 {[%clk 0:00:11]} 38. Qe6+ {[%clk 0:00:08.4]} 38... Kf8
{[%clk 0:00:06.8]} 39. Qf5+ {[%clk 0:00:07.7]} 39... Ke7 {[%clk 0:00:06.4]} 40.
Rg1 {[%clk 0:00:08]} 40... Rd2 {[%clk 0:00:05.4]} 41. Qh3 {[%clk 0:00:05.8]}
41... Rxh3 {[%clk 0:00:04.5]} 0-1